bitfinex/quotes_SOLUSD_20251124
["timestamp","ask_amount","ask_price","bid_price","bid_amount"]
[1764027476204,8.80994492,138.85,138.79,0.1]
[1764027476506,2.79175635,138.81,138.79,0.1]
[1764027476790,2.79175635,138.81,138.78,63.179]
[1764027476974,3.45175635,138.81,138.78,63.179]
[1764027477376,5.97175635,138.81,138.78,62.5]
[1764027478097,5.97175635,138.81,138.78,69.70564085]
[1764027478495,5.97175635,138.81,138.78,62.5]
[1764027478685,2.79175635,138.8,138.78,62.5]
[1764027478871,2.79175635,138.8,138.78,63.19]
[1764027479075,6.63175635,138.81,138.78,70.39556191]
[1764027479282,6.63175635,138.81,138.78,63.19]
[1764027480498,6.63175635,138.81,138.78,70.39553931]
[1764027483389,2.79175635,138.79,138.78,62.5]
[1764027483893,3.45175635,138.79,138.78,62.5]
[1764027490206,3.45175635,138.79,138.75,70.39703665]
[1764027490506,3.45175635,138.78,138.75,70.39703665]
[1764027490709,2.79175635,138.77,138.75,70.39703665]
[1764027492611,5.03153382,138.78,138.75,70.39703665]
[1764027494103,16.308864,138.8,138.76,0.69]
[1764027494405,3.84,138.81,138.76,63.19]
[1764027494706,8.21153382,138.81,138.77,0.69]
[1764027494890,4.37153382,138.8,138.77,0.69]
[1764027495097,4.37153382,138.79,138.77,0.69]
[1764027495408,4.37153382,138.79,138.76,62.5]
[1764027495607,5.03153382,138.79,138.76,62.5]
[1764027495785,5.03153382,138.79,138.76,70.39644033]
[1764027496486,5.03153382,138.79,138.76,63.19]
[1764027496709,5.03153382,138.79,138.76,70.3966869]
[1764027497302,4.37153382,138.8,138.77,0.69]
[1764027497508,5.03153382,138.8,138.77,0.69]
[1764027498296,4.37153382,138.79,138.77,0.69]
[1764027499090,5.03153382,138.8,138.77,7.89604385]
[1764027500398,5.03153382,138.8,138.77,70.39604385]
[1764027503008,4.37153382,138.8,138.77,69.70604385]
[1764027503217,16.308864,138.81,138.78,0.69]
[1764027503392,16.968864,138.81,138.78,63.19]
[1764027503998,21.34039782,138.81,138.78,70.39532773]
[1764027504692,4.37153382,138.8,138.78,62.5]
[1764027504913,4.37153382,138.79,138.78,62.5]
[1764027505329,5.03153382,138.79,138.78,62.5]
[1764027507625,8.21153382,138.79,138.78,62.5]
[1764027508120,8.21153382,138.79,138.76,62.5]
[1764027508314,4.37153382,138.77,138.76,62.5]
[1764027508715,5.03153382,138.77,138.76,62.5]
[1764027508908,4.37153382,138.77,138.76,62.5]
[1764027509706,4.37153382,138.78,138.76,62.5]
[1764027509908,5.03153382,138.78,138.76,62.5]
[1764027510921,4.37153382,138.77,138.76,62.5]
[1764027511102,5.03153382,138.78,138.76,62.5]
[1764027511507,3.18,138.79,138.77,0.69]
[1764027511715,5.03153382,138.8,138.77,0.69]
[1764027511716,0.66,138.8,138.77,0.69]
[1764027511931,19.488864,138.8,138.77,63.19]
[1764027512325,19.488864,138.8,138.78,0.69]
[1764027513235,19.488864,138.8,138.77,70.39579078]
[1764027513535,20.148864,138.8,138.77,70.39579078]
[1764027513830,3.18,138.8,138.78,0.69]
[1764027514334,3.18,138.8,138.78,7.89514481]
[1764027514731,3.18,138.8,138.79,0.69]
[1764027515120,21.34039782,138.82,138.79,0.69]
[1764027515320,24.52039782,138.82,138.79,0.69]
[1764027516331,24.52039782,138.82,138.79,7.89510932]
[1764027516537,4.37153382,138.8,138.77,70.39613598]
[1764027516835,0.66,138.81,138.77,70.39613598]
[1764027516836,5.03153382,138.81,138.77,70.39613598]
[1764027517522,5.03153382,138.81,138.78,0.69]
[1764027518337,5.03153382,138.81,138.78,63.19]
[1764027518636,5.03153382,138.81,138.78,70.39524273]
[1764027521746,4.37153382,138.8,138.78,69.70524273]
[1764027521935,0.66,138.8,138.78,69.70524273]
[1764027522132,4.37153382,138.81,138.78,69.70524273]
[1764027522437,5.03153382,138.81,138.78,70.39524273]
[1764027523430,4.37153382,138.79,138.78,62.5]
[1764027523629,7.55153382,138.79,138.78,62.5]
[1764027523832,8.21153382,138.79,138.78,62.5]
[1764027524924,8.21153382,138.79,138.75,62.5]
[1764027525145,5.03153382,138.78,138.75,62.5]
[1764027525630,4.37153382,138.77,138.75,62.5]
[1764027526214,5.03153382,138.77,138.75,62.5]
[1764027526538,8.21153382,138.76,138.71,10.38900259]
[1764027526728,3.18,138.76,138.72,0.69]
[1764027527118,3.18,138.76,138.73,7.20824623]
[1764027527322,3.18,138.76,138.73,7.89824623]
[1764027527818,5.03153382,138.75,138.73,7.20824623]
[1764027528023,0.66,138.75,138.73,7.20824623]
[1764027528234,4.37153382,138.76,138.73,7.20824623]
[1764027528430,5.07153382,138.76,138.73,7.89824623]
[1764027528827,4.37153382,138.75,138.73,7.89824623]
[1764027529138,4.37153382,138.75,138.72,7.89860448]
[1764027529341,0.7,138.76,138.72,7.89860448]
[1764027529544,5.07153382,138.76,138.73,0.69]
[1764027529748,4.37153382,138.78,138.73,0.69]
[1764027530047,5.07153382,138.77,138.73,0.69]
[1764027530417,4.37153382,138.77,138.73,0.69]
[1764027530638,0.7,138.77,138.73,0.69]
[1764027531026,4.37153382,138.78,138.73,0.69]
[1764027531228,5.07153382,138.78,138.73,0.69]
[1764027531740,3.18,138.79,138.74,7.20772668]
[1764027531741,5.07153382,138.77,138.74,7.20772668]
[1764027532050,4.37153382,138.77,138.74,7.75700211]
[1764027532933,5.03153382,138.77,138.74,7.75700211]
[1764027533145,4.37153382,138.77,138.74,7.06700211]
[1764027533450,4.37153382,138.75,138.73,62.5]
[1764027533650,5.03153382,138.76,138.73,62.5]
[1764027533845,4.37153382,138.76,138.73,70.36808731]
[1764027534055,0.66,138.77,138.73,70.36808731]
[1764027534056,0.66,138.77,138.74,0.66]
[1764027534239,4.37153382,138.76,138.74,0.66]
[1764027534641,5.03153382,138.77,138.74,0.66]
[1764027535430,5.03153382,138.77,138.74,7.86741228]
[1764027535631,0.66,138.77,138.74,7.86741228]
[1764027536040,0.66,138.77,138.74,70.36741228]
[1764027536551,0.66,138.77,138.74,69.70741228]
[1764027536852,5.03153382,138.77,138.74,70.36741228]
[1764027537636,4.37153382,138.78,138.74,69.70741228]
[1764027537837,0.66,138.77,138.74,70.36741228]
[1764027538859,4.37153382,138.78,138.75,0.66]
[1764027539062,5.03153382,138.77,138.74,69.70741228]
[1764027539362,0.66,138.77,138.74,70.36741228]
[1764027539856,5.03153382,138.77,138.74,70.36741228]
[1764027540754,4.37153382,138.78,138.74,70.36741228]
[1764027540957,16.308864,138.8,138.74,70.36741228]
[1764027540958,4.37153382,138.8,138.75,0.66]
[1764027541141,8.21153382,138.81,138.75,168.24]
[1764027541660,8.21153382,138.81,138.76,0.66]
[1764027542161,16.308864,138.81,138.76,0.66]
[1764027542366,4.37153382,138.79,138.76,0.66]
[1764027542861,5.03153382,138.8,138.77,7.20616848]
[1764027543366,5.03153382,138.8,138.77,7.86616848]
[1764027544884,5.03153382,138.8,138.77,70.36616848]
[1764027545237,4.37153382,138.81,138.78,0.66]
[1764027545468,5.03153382,138.81,138.78,63.16]
[1764027546166,0.66,138.81,138.78,63.16]
[1764027546365,0.66,138.81,138.79,7.20513005]
[1764027546541,5.03153382,138.81,138.79,7.20513005]
[1764027547361,5.03153382,138.8,138.78,62.5]
[1764027547968,4.37153382,138.8,138.78,69.70548656]
[1764027548568,0.66,138.81,138.78,69.70548656]
[1764027548768,19.488864,138.82,138.79,0.66]
[1764027548978,21.65986787,138.85,138.79,165.06]
[1764027549182,8.21153382,138.84,138.79,165.06]
[1764027549667,5.03153382,138.83,138.79,164.4]
[1764027549871,5.03153382,138.83,138.8,0.66]
[1764027550176,0.66,138.83,138.8,0.66]
[1764027550486,0.66,138.85,138.8,67.53153382]
[1764027550789,4.37153382,138.82,138.8,62.5]
[1764027551191,5.03153382,138.82,138.8,69.70443397]
[1764027551869,4.37153382,138.83,138.8,69.70443397]
[1764027552092,4.37153382,138.83,138.8,70.36443397]
[1764027552277,5.03153382,138.83,138.8,70.36443397]
[1764027552695,3.45559856,138.82,138.8,62.5]
[1764027552873,3.45559856,138.82,138.8,69.70460227]
[1764027554087,3.45559856,138.83,138.8,69.70460227]
[1764027554892,0.66,138.83,138.8,69.70460227]
[1764027555075,2.79559856,138.82,138.8,69.70460227]
[1764027555279,3.45559856,138.82,138.8,69.70460227]
[1764027555792,3.45559856,138.82,138.8,62.5]
[1764027555793,3.45559856,138.81,138.8,62.5]
[1764027558896,6.63559856,138.81,138.8,62.5]
[1764027560779,5.97559856,138.81,138.8,62.5]
[1764027561091,2.79559856,138.81,138.8,62.5]
[1764027561465,3.45559856,138.81,138.8,62.5]
[1764027566783,5.97559856,138.82,138.8,62.5]
[1764027567098,6.63559856,138.82,138.8,62.5]
[1764027567397,2.79559856,138.81,138.8,62.5]
[1764027567595,6.63559856,138.82,138.8,62.5]
[1764027568902,6.63559856,138.82,138.8,69.70460566]
[1764027570200,5.97559856,138.82,138.8,69.70460566]
[1764027570504,6.63559856,138.82,138.8,62.5]
[1764027571718,2.79559856,138.81,138.8,62.5]
[1764027573410,3.45559856,138.81,138.8,62.5]
[1764027577194,0.66,138.81,138.8,62.5]
[1764027577394,3.45559856,138.81,138.8,62.5]
[1764027578529,6.63559856,138.81,138.8,62.5]
[1764027580626,9.43119712,138.81,138.8,62.5]
[1764027580836,6.63559856,138.81,138.75,63.16]
[1764027581035,2.79559856,138.78,138.75,63.16]
[1764027581228,5.97559856,138.78,138.75,63.16]
[1764027581431,6.63559856,138.78,138.75,63.16]
[1764027581745,5.97559856,138.78,138.75,63.16]
[1764027581922,5.97559856,138.78,138.75,62.5]
[1764027582122,5.97559856,138.78,138.76,0.66]
[1764027582548,6.63559856,138.78,138.75,70.36720098]
[1764027582949,5.97559856,138.78,138.75,70.36720098]
[1764027583446,3.18,138.78,138.75,70.36720098]
[1764027583654,3.18,138.78,138.75,63.16]
[1764027583949,3.18,138.78,138.76,0.66]
[1764027584743,0.66,138.81,138.76,0.66]
[1764027584928,2.79559856,138.77,138.76,62.5]
[1764027585248,3.18,138.8,138.76,62.5]
[1764027585249,2.79559856,138.78,138.76,62.5]
[1764027585655,3.45559856,138.78,138.76,62.5]
[1764027587848,0.66,138.78,138.76,62.5]
[1764027592734,3.18,138.77,138.76,62.5]
[1764027597879,3.89,138.78,138.76,62.5]
[1764027599979,16.308864,138.75,138.74,62.5]
[1764027600179,22.28446256,138.75,138.74,62.5]
[1764027600365,20.198864,138.75,138.74,62.5]
[1764027600563,21.67238576,138.77,138.74,63.15]
[1764027600766,3.18,138.76,138.74,63.15]
[1764027601759,3.18,138.76,138.74,62.5]
[1764027602888,28.87442477,138.79,138.75,0.65]
[1764027602889,21.66925493,138.79,138.75,0.65]
[1764027603059,21.66925493,138.79,138.74,167.19559856]
[1764027603060,3.89,138.78,138.74,165.05]
[1764027603258,2.79559856,138.77,138.74,164.4]
[1764027603470,0.71,138.77,138.74,165.05]
[1764027604065,3.50559856,138.76,138.74,164.4]
[1764027604269,3.18,138.75,138.74,62.5]
[1764027604477,3.89,138.75,138.74,62.5]
[1764027604677,3.18,138.75,138.74,62.5]
[1764027604875,3.89,138.75,138.74,62.5]
[1764027605771,3.89,138.75,138.72,0.65]
[1764027606486,3.18,138.75,138.72,0.65]
[1764027606688,3.18,138.75,138.71,69.70911599]
[1764027606893,0.71,138.74,138.71,63.15]
[1764027607274,3.89,138.75,138.71,63.15]
[1764027607484,3.89,138.75,138.72,0.65]
[1764027608086,3.18,138.76,138.72,10.65408088]
[1764027608390,0.71,138.76,138.72,10.65408088]
[1764027608693,0.71,138.79,138.74,2.79559856]
[1764027608873,3.89,138.78,138.73,63.15]
[1764027609078,6.68559856,138.78,138.73,63.15]
[1764027609273,0.71,138.77,138.74,0.65]
[1764027609796,22.99446256,138.78,138.74,0.65]
[1764027610181,20.198864,138.78,138.74,0.65]
[1764027610375,20.198864,138.78,138.74,7.8575783]
[1764027610576,0.71,138.77,138.74,7.8575783]
[1764027610996,20.198864,138.78,138.75,0.65]
[1764027611370,16.308864,138.8,138.75,65.94559856]
[1764027611571,16.308864,138.8,138.75,63.15]
[1764027611770,16.308864,138.8,138.76,0.65]
[1764027612799,17.018864,138.8,138.76,7.85634346]
[1764027613004,17.018864,138.8,138.77,0.65]
[1764027613206,17.018864,138.8,138.77,63.15]
[1764027613502,17.018864,138.8,138.77,62.5]
[1764027613686,0.71,138.8,138.77,62.5]
[1764027613886,0.71,138.8,138.77,63.15]
[1764027614293,0.71,138.8,138.77,62.5]
[1764027614294,5.07949266,138.8,138.77,62.5]
[1764027614678,3.89,138.79,138.77,62.5]
[1764027616100,3.89,138.79,138.76,0.65]
[1764027617289,0.71,138.78,138.75,7.20719802]
[1764027617610,0.71,138.78,138.75,7.85719802]
[1764027617985,3.89,138.79,138.75,7.85719802]
[1764027618381,3.89,138.79,138.76,0.65]
[1764027618689,19.488864,138.8,138.76,7.85648138]
[1764027618994,20.198864,138.8,138.76,7.85648138]
[1764027619195,20.198864,138.8,138.77,0.65]
[1764027619575,19.488864,138.8,138.77,0.65]
[1764027619782,3.18,138.81,138.77,5.01949266]
[1764027620183,3.18,138.81,138.78,0.65]
[1764027620688,3.89,138.81,138.78,0.65]
[1764027620883,3.89,138.81,138.77,7.85608313]
[1764027621100,0.71,138.8,138.77,7.20608313]
[1764027622210,0.71,138.8,138.77,69.70608313]
[1764027623794,4.36949266,138.79,138.77,62.5]
[1764027623989,5.07949266,138.8,138.77,62.5]
[1764027624611,17.018864,138.82,138.78,0.68]
[1764027624794,3.89,138.81,138.78,0.68]
[1764027626010,3.18,138.81,138.78,0.68]
[1764027626387,3.18,138.81,138.78,7.88551244]
[1764027626593,3.18,138.81,138.79,0.68]
[1764027627516,3.18,138.81,138.78,7.20551244]
[1764027627719,3.18,138.81,138.78,7.88551244]
[1764027628219,3.18,138.81,138.78,70.38551244]
[1764027628800,3.18,138.81,138.78,69.70551244]
[1764027629000,3.18,138.81,138.79,0.68]
[1764027629400,3.89,138.84,138.8,4.36949266]
[1764027629714,16.308864,138.86,138.81,5.04949266]
[1764027629715,3.18,138.85,138.81,5.04949266]
[1764027630092,0.71,138.86,138.82,12.25306563]
[1764027630093,3.18,138.86,138.82,12.25306563]
[1764027630313,3.18,138.86,138.82,7.88357297]
[1764027630522,3.89,138.86,138.83,0.68]
[1764027630816,3.18,138.86,138.83,0.68]
[1764027631203,0.71,138.88,138.83,5.04949266]
[1764027631409,3.18,138.89,138.84,4.36949266]
[1764027631608,3.18,138.89,138.84,5.04949266]
[1764027631794,3.89,138.89,138.85,0.68]
[1764027632127,0.2,138.91,138.86,11.57099057]
[1764027632302,8.45949266,138.91,138.86,7.88149791]
[1764027632706,0.71,138.9,138.86,7.20149791]
[1764027632907,0.71,138.9,138.87,0.68]
[1764027633424,0.71,138.9,138.86,7.88149791]
[1764027634300,0.71,138.9,138.87,0.68]
[1764027634921,0.71,138.9,138.87,7.88094605]
[1764027637017,0.71,138.9,138.87,70.38094605]
[1764027637528,0.71,138.9,138.87,69.70094605]
[1764027637735,0.71,138.9,138.87,70.38094605]
[1764027639234,0.71,138.9,138.87,63.18]
[1764027639539,0.71,138.9,138.87,70.38096392]
[1764027639941,0.71,138.9,138.85,3.18]
[1764027640154,4.36949266,138.89,138.84,0.68]
[1764027640649,0.71,138.88,138.84,0.68]
[1764027640814,0.71,138.88,138.84,7.88225339]
[1764027641214,0.71,138.88,138.85,0.68]
[1764027642129,0.71,138.89,138.85,0.68]
[1764027642332,0.71,138.89,138.86,7.20149791]
[1764027643055,17.218864,138.91,138.86,11.57099057]
[1764027643257,0.71,138.9,138.87,0.68]
[1764027644527,0.71,138.9,138.86,7.88140227]
[1764027645432,0.71,138.9,138.86,7.20140227]
[1764027645433,5.07949266,138.9,138.86,7.20140227]
[1764027645853,5.07949266,138.9,138.85,7.20201656]
[1764027645854,0.71,138.89,138.85,7.20201656]
[1764027646061,0.71,138.89,138.85,7.88201656]
[1764027646959,8.25949266,138.89,138.84,7.20253529]
[1764027647253,3.18,138.89,138.86,4.36949266]
[1764027647434,3.18,138.9,138.87,4.36949266]
[1764027647639,19.688864,138.91,138.87,4.36949266]
[1764027647859,20.398864,138.91,138.88,0.68]
[1764027648354,20.398864,138.91,138.87,5.03949266]
[1764027648555,0.69,138.9,138.87,0.67]
[1764027649556,0.69,138.9,138.87,7.87079353]
[1764027651760,0.69,138.9,138.87,70.37079353]
[1764027655158,0.69,138.9,138.87,69.70079353]
[1764027655664,0.69,138.9,138.87,62.5]
[1764027655954,5.05949266,138.9,138.87,62.5]
[1764027656134,0.69,138.9,138.87,62.5]
[1764027656337,0.68,138.89,138.87,62.5]
[1764027656556,0.68,138.89,138.87,69.70095122]
[1764027658049,0.68,138.9,138.87,69.70095122]
[1764027659837,0.68,138.9,138.87,62.5]
[1764027660555,5.04949266,138.9,138.87,62.5]
[1764027661061,0.68,138.89,138.87,62.5]
[1764027662058,0.68,138.89,138.87,69.70093274]
[1764027662566,4.06,138.91,138.87,70.38093274]
[1764027662768,0.68,138.9,138.87,70.38093274]
[1764027663344,0.68,138.9,138.87,62.5]
[1764027665767,0.68,138.9,138.87,70.38092921]
[1764027667171,0.68,138.9,138.87,62.5]
[1764027668178,0.68,138.9,138.87,63.18]
[1764027668573,3.86,138.9,138.87,63.18]
[1764027669852,3.86,138.9,138.87,62.5]
[1764027670874,7.54949266,138.9,138.87,62.5]
[1764027671067,0.68,138.89,138.87,62.5]
[1764027671444,5.04949266,138.89,138.87,62.5]
[1764027671649,0.68,138.88,138.87,62.5]
[1764027671849,8.22949266,138.9,138.87,62.5]
[1764027672067,0.68,138.89,138.87,62.5]
[1764027673064,2.79287136,138.88,138.87,62.5]
[1764027673279,16.308864,138.88,138.87,62.5]
[1764027673471,16.988864,138.88,138.87,62.5]
[1764027673774,16.308864,138.88,138.87,62.5]
[1764027673976,3.47287136,138.9,138.87,62.5]
[1764027674178,20.168864,138.89,138.87,62.5]
[1764027676279,16.988864,138.89,138.87,62.5]
[1764027676575,20.168864,138.89,138.87,62.5]
[1764027677151,16.988864,138.89,138.87,62.5]
[1764027677462,20.168864,138.89,138.87,62.5]
[1764027680403,16.308864,138.9,138.87,69.70077166]
[1764027680555,3.18,138.89,138.87,69.70077166]
[1764027680756,3.18,138.89,138.87,70.38077166]
[1764027684079,3.86,138.9,138.87,70.38077166]
[1764027689601,0.68,138.9,138.87,70.38077166]
[1764027689899,3.86,138.9,138.87,70.38077166]
[1764027691092,6.67287136,138.9,138.87,69.70077166]
[1764027691297,6.67287136,138.9,138.87,70.40077166]
[1764027692504,3.88,138.9,138.87,70.40077166]
[1764027692697,0.7,138.89,138.87,62.5]
[1764027693224,3.49287136,138.89,138.87,62.5]
[1764027693381,2.79287136,138.88,138.87,62.5]
[1764027693587,19.80173536,138.88,138.87,62.5]
[1764027695603,16.308864,138.85,138.81,62.5]
[1764027695911,21.86482939,138.88,138.8,62.5]
[1764027695912,2.79287136,138.82,138.8,62.5]
[1764027696108,2.79287136,138.82,138.79,7.90470507]
[1764027697501,2.79287136,138.82,138.8,0.7]
[1764027697902,6.67287136,138.83,138.8,0.7]
[1764027698301,3.18,138.84,138.8,7.90454461]
[1764027698683,3.18,138.84,138.81,0.7]
[1764027699009,3.49287136,138.83,138.8,7.90454461]
[1764027699318,3.49287136,138.83,138.8,70.40454461]
[1764027700411,3.88,138.84,138.8,69.70454461]
[1764027700712,3.18,138.84,138.81,0.7]
[1764027701980,2.79287136,138.88,138.82,2.79287136]
[1764027702189,6.67287136,138.88,138.82,2.79287136]
[1764027702387,6.67287136,138.88,138.83,0.7]
[1764027702605,6.67287136,138.88,138.84,7.20253529]
[1764027702812,22.98173536,138.88,138.84,69.70253529]
[1764027702997,22.98173536,138.88,138.84,70.40253529]
[1764027703191,20.188864,138.88,138.84,70.40253529]
[1764027703820,0.7,138.87,138.84,70.40253529]
[1764027704614,20.188864,138.88,138.84,70.40253529]
[1764027705011,19.488864,138.88,138.84,69.70253529]
[1764027705202,19.488864,138.89,138.85,0.7]
[1764027705514,3.88,138.9,138.85,3.49287136]
[1764027705908,3.88,138.9,138.86,0.7]
[1764027706286,3.88,138.9,138.87,7.20097933]
[1764027706709,3.88,138.9,138.87,7.90097933]
[1764027708401,0.2,138.91,138.88,0.72]
[1764027708619,16.508864,138.91,138.88,0.72]
[1764027708823,0.2,138.91,138.88,66.01287136]
[1764027709328,0.2,138.91,138.89,0.72]
[1764027710612,0.2,138.91,138.89,63.22]
[1764027710800,0.2,138.91,138.89,70.41974815]
[1764027711842,19.79173536,138.9,138.87,62.5]
[1764027712140,19.79173536,138.9,138.84,111.42994492]
[1764027712141,2.79287136,138.88,138.84,62.5]
[1764027712302,2.79287136,138.86,138.84,62.5]
[1764027714213,2.79287136,138.86,138.84,70.37248076]
[1764027716832,2.79287136,138.86,138.84,69.70248076]
[1764027719048,0.69,138.87,138.84,70.37248076]
[1764027719219,3.48287136,138.87,138.84,70.37248076]
[1764027719945,3.51287136,138.86,138.84,62.5]
[1764027721241,2.79287136,138.86,138.84,63.17]
[1764027722250,3.51287136,138.87,138.84,63.17]
[1764027722748,3.51287136,138.87,138.84,0.67]
[1764027722929,3.51287136,138.87,138.83,70.37287366]
[1764027723323,0.72,138.87,138.84,0.67]
[1764027724144,2.79287136,138.86,138.83,69.70287366]
[1764027724329,2.79287136,138.86,138.83,70.37287366]
[1764027724530,3.51287136,138.86,138.83,70.37287366]
[1764027725628,0.72,138.86,138.83,70.37287366]
[1764027725826,16.308864,138.88,138.84,0.67]
[1764027726042,2.79287136,138.89,138.84,0.67]
[1764027726242,2.79287136,138.88,138.84,0.67]
[1764027726628,3.51287136,138.87,138.83,73.55287366]
[1764027727159,3.51287136,138.87,138.84,0.67]
[1764027727160,0.72,138.87,138.84,0.67]
[1764027727322,3.51287136,138.87,138.84,0.67]
[1764027727519,3.51287136,138.87,138.83,73.55287366]
[1764027729260,0.72,138.87,138.84,0.67]
[1764027730955,2.79287136,138.89,138.84,0.67]
[1764027731158,0.72,138.88,138.84,7.87213087]
[1764027731743,0.72,138.88,138.85,0.67]
[1764027731953,0.72,138.88,138.85,63.17]
[1764027733331,3.51287136,138.88,138.85,62.5]
[1764027733752,0.72,138.87,138.85,62.5]
[1764027734645,0.72,138.87,138.85,69.70200037]
[1764027737062,0.72,138.87,138.85,62.5]
[1764027738239,0.72,138.87,138.85,69.70197208]
[1764027741765,19.488864,138.89,138.86,0.67]
[1764027741942,19.488864,138.89,138.86,7.87142558]
[1764027742143,20.208864,138.89,138.86,7.87142558]
[1764027742344,0.72,138.88,138.86,7.20142558]
[1764027743244,3.18,138.89,138.86,7.20142558]
[1764027743569,16.308864,138.9,138.87,0.66]
[1764027743772,16.308864,138.9,138.87,63.16]
[1764027744063,3.38,138.91,138.88,7.20046082]
[1764027744271,0.7,138.9,138.88,7.20046082]
[1764027747044,0.7,138.9,138.87,70.36079367]
[1764027748280,7.74539679,138.91,138.88,0.66]
[1764027748281,3.38,138.91,138.88,0.66]
[1764027748769,4.08,138.91,138.88,0.66]
[1764027748972,3.38,138.91,138.87,70.36079367]
[1764027749178,0.7,138.9,138.87,70.36079367]
[1764027749853,0.7,138.9,138.87,172.26079367]
[1764027752268,0.9,138.91,138.88,7.86007012]
[1764027752764,0.9,138.91,138.89,5.02539679]
[1764027752765,0.2,138.91,138.89,5.02539679]
[1764027753862,0.2,138.91,138.89,0.66]
[1764027754871,0.2,138.91,138.89,7.85943526]
[1764027755551,0.2,138.91,138.89,7.19943526]
[1764027755877,0.9,138.91,138.88,172.26025918]
[1764027758250,0.7,138.9,138.88,164.4]
[1764027758654,0.7,138.9,138.88,62.5]
[1764027760082,0.7,138.9,138.88,69.70043673]
[1764027760968,0.2,138.91,138.88,69.70043673]
[1764027761179,0.2,138.91,138.89,0.66]
[1764027762050,0.2,138.91,138.88,74.72583352]
[1764027762257,0.9,138.91,138.88,74.72583352]
[1764027762656,0.9,138.91,138.88,70.36043673]
[1764027763959,0.9,138.91,138.88,69.70043673]
[1764027764574,0.9,138.91,138.88,172.26043673]
[1764027772899,0.2,138.91,138.89,0.69]
[1764027773969,0.2,138.91,138.89,5.05539679]
[1764027774294,0.2,138.91,138.9,7.19942404]
[1764027774464,0.2,138.91,138.9,70.38942404]
[1764027778895,0.2,138.91,138.9,63.19]
[1764027779508,0.2,138.91,138.9,70.38942404]
[1764027780091,0.2,138.91,138.9,74.75482083]
[1764027780490,0.2,138.91,138.9,70.38942404]
[1764027781122,0.2,138.91,138.9,189.36470815]
[1764027781286,0.2,138.91,138.9,191.52983192]
[1764027784200,0.2,138.91,138.9,174.48449021]
[1764027784397,0.87,138.91,138.9,164.4]
[1764027784612,0.87,138.91,138.9,62.5]
[1764027786421,0.2,138.91,138.9,62.5]
[1764027787227,0.87,138.91,138.9,62.5]
[1764027787528,0.2,138.91,138.9,62.5]
[1764027788202,0.87,138.91,138.9,62.5]
[1764027792745,5.23539679,138.91,138.9,62.5]
[1764027794241,0.87,138.91,138.9,62.5]
[1764027797140,0.2,138.91,138.9,62.5]
[1764027797305,0.2,138.91,138.9,63.19]
[1764027798241,0.2,138.91,138.9,62.5]
[1764027798845,0.2,138.91,138.9,69.69942404]
[1764027799006,0.2,138.91,138.9,70.38942404]
[1764027800251,0.2,138.91,138.9,0.69]
[1764027800452,0.2,138.91,138.89,72.49171362]
[1764027801052,0.2,138.91,138.89,69.69977782]
[1764027801931,0.2,138.91,138.89,70.38977782]
[1764027804821,0.2,138.91,138.9,0.69]
[1764027805023,0.2,138.91,138.9,63.19]
[1764027805223,0.2,138.91,138.9,65.9819358]
[1764027806339,0.2,138.91,138.9,73.18135984]
[1764027809353,0.2,138.91,138.9,175.08135984]
[1764027815055,0.2,138.93,138.92,7.19838756]